[Event "*** Titled Tuesday Blitz"]
[Site "Chess.com"]
[Date "2021.02.09"]
[Round "11"]
[White "noblerone"]
[Black "ARTHURMOTIVATOR"]
[Result "0-1"]
[WhiteElo "2395"]
[BlackElo "2316"]
[TimeControl "180+1"]
[EndTime "12:08:21 PST"]
[Termination "ARTHURMOTIVATOR won on time"]

1. d4 {[%clk 0:03:00.9]} 1... Nf6 {[%clk 0:02:58.7]} 2. Nf3 {[%clk 0:03:01.4]}
2... c5 {[%clk 0:02:57.5]} 3. c3 {[%clk 0:03:01.1]} 3... g6 {[%clk 0:02:55.3]}
4. Bg5 {[%clk 0:02:59.6]} 4... Bg7 {[%clk 0:02:52.7]} 5. Nbd2 {[%clk 0:02:59.1]}
5... O-O {[%clk 0:02:47]} 6. e3 {[%clk 0:02:59.4]} 6... b6 {[%clk 0:02:45.5]} 7.
Bc4 {[%clk 0:02:54.9]} 7... Bb7 {[%clk 0:02:45.3]} 8. O-O {[%clk 0:02:54.1]}
8... d6 {[%clk 0:02:45.3]} 9. a4 {[%clk 0:02:54]} 9... a6 {[%clk 0:02:44.5]} 10.
Qe2 {[%clk 0:02:52.8]} 10... Nbd7 {[%clk 0:02:44.2]} 11. Bh4 {[%clk 0:02:48.5]}
11... Ra7 {[%clk 0:02:44]} 12. Rfe1 {[%clk 0:02:45.5]} 12... Qa8 {[%clk
0:02:42.5]} 13. Rec1 {[%clk 0:02:40.3]} 13... Re8 {[%clk 0:02:37.6]} 14. h3
{[%clk 0:02:25.4]} 14... e5 {[%clk 0:02:33.5]} 15. dxe5 {[%clk 0:02:24.7]} 15...
Nxe5 {[%clk 0:02:28.7]} 16. Nxe5 {[%clk 0:02:24]} 16... dxe5 {[%clk 0:02:29.6]}
17. f3 {[%clk 0:02:10.2]} 17... e4 {[%clk 0:02:28.9]} 18. f4 {[%clk 0:02:04.5]}
18... Nd7 {[%clk 0:02:27.9]} 19. Rd1 {[%clk 0:01:55.6]} 19... Nb8 {[%clk
0:02:27.5]} 20. Nf1 {[%clk 0:01:43.3]} 20... Bc6 {[%clk 0:02:01.7]} 21. f5
{[%clk 0:01:29.1]} 21... Rd7 {[%clk 0:01:55.8]} 22. fxg6 {[%clk 0:01:23.8]}
22... hxg6 {[%clk 0:01:54.5]} 23. Qg4 {[%clk 0:01:23]} 23... Rxd1 {[%clk
0:01:49.4]} 24. Rxd1 {[%clk 0:01:23.9]} 24... b5 {[%clk 0:01:43.9]} 25. axb5
{[%clk 0:01:15.7]} 25... axb5 {[%clk 0:01:44.8]} 26. Bb3 {[%clk 0:01:13.9]}
26... c4 {[%clk 0:01:43.8]} 27. Bc2 {[%clk 0:01:14]} 27... Qa7 {[%clk
0:01:37.8]} 28. Ng3 {[%clk 0:01:07.9]} 28... Qxe3+ {[%clk 0:01:33.9]} 29. Kh1
{[%clk 0:01:07.9]} 29... Nd7 {[%clk 0:00:32.8]} 30. Rxd7 {[%clk 0:01:00.8]}
30... Bxd7 {[%clk 0:00:33.7]} 31. Qxd7 {[%clk 0:01:00.3]} 31... Re6 {[%clk
0:00:29.1]} 32. Qd8+ {[%clk 0:00:48.2]} 32... Kh7 {[%clk 0:00:27.6]} 33. Qd1
{[%clk 0:00:46]} 33... b4 {[%clk 0:00:27.7]} 34. Nf1 {[%clk 0:00:40]} 34... Qf4
{[%clk 0:00:20.8]} 35. Bg3 {[%clk 0:00:38.7]} 35... Qg5 {[%clk 0:00:20.8]} 36.
cxb4 {[%clk 0:00:38.9]} 36... e3 {[%clk 0:00:20.1]} 37. Qe2 {[%clk 0:00:38.7]}
37... Bxb2 {[%clk 0:00:18.7]} 38. h4 {[%clk 0:00:21.4]} 38... Qf6 {[%clk
0:00:17.2]} 39. Kh2 {[%clk 0:00:19.7]} 39... Bd4 {[%clk 0:00:17.1]} 40. b5
{[%clk 0:00:19.1]} 40... Bb6 {[%clk 0:00:16.6]} 41. h5 {[%clk 0:00:18]} 41...
Kg7 {[%clk 0:00:15.7]} 42. Kh3 {[%clk 0:00:15.5]} 42... g5 {[%clk 0:00:13.9]}
43. Kh2 {[%clk 0:00:14.7]} 43... Qh6 {[%clk 0:00:13.3]} 44. Qxc4 {[%clk
0:00:09.5]} 44... Qxh5+ {[%clk 0:00:12.1]} 45. Kg1 {[%clk 0:00:07.7]} 45... e2+
{[%clk 0:00:11.2]} 46. Bf2 {[%clk 0:00:05.1]} 46... exf1=Q+ {[%clk 0:00:09.6]}
47. Qxf1 {[%clk 0:00:06]} 47... Rf6 {[%clk 0:00:06.9]} 48. Bxb6 {[%clk
0:00:03.2]} 48... Rxf1+ {[%clk 0:00:06.9]} 49. Kxf1 {[%clk 0:00:04.1]} 49...
Qh1+ {[%clk 0:00:06.7]} 50. Kf2 {[%clk 0:00:03.1]} 50... Qh4+ {[%clk 0:00:06.4]}
51. Kg1 {[%clk 0:00:01.8]} 51... Qc4 {[%clk 0:00:07.3]} 0-1

[Event "*** Titled Tuesday Blitz"]
[Site "Chess.com"]
[Date "2021.02.09"]
[Round "11"]
[White "Spartakus1975"]
[Black "woodhy"]
[Result "1-0"]
[WhiteElo "2578"]
[BlackElo "2459"]
[TimeControl "180+1"]
[EndTime "12:08:23 PST"]
[Termination "Spartakus1975 won by resignation"]

1. e4 {[%clk 0:03:00.9]} 1... e5 {[%clk 0:02:57.3]} 2. Nf3 {[%clk 0:03:00.3]}
2... Nc6 {[%clk 0:02:56.4]} 3. Bb5 {[%clk 0:03:00.5]} 3... Nf6 {[%clk
0:02:48.8]} 4. O-O {[%clk 0:02:59.7]} 4... a6 {[%clk 0:02:44.2]} 5. Bxc6 {[%clk
0:02:58.4]} 5... bxc6 {[%clk 0:02:37.8]} 6. Nxe5 {[%clk 0:02:57.7]} 6... Be7
{[%clk 0:02:36.2]} 7. d3 {[%clk 0:02:55.4]} 7... O-O {[%clk 0:02:34.9]} 8. Nc3
{[%clk 0:02:55.4]} 8... Bb7 {[%clk 0:02:34.4]} 9. Nf3 {[%clk 0:02:48.1]} 9... d5
{[%clk 0:02:33]} 10. e5 {[%clk 0:02:45.8]} 10... Nd7 {[%clk 0:02:14.6]} 11. d4
{[%clk 0:02:44.3]} 11... c5 {[%clk 0:02:15]} 12. Re1 {[%clk 0:02:36.5]} 12...
cxd4 {[%clk 0:02:06.1]} 13. Qxd4 {[%clk 0:02:36.2]} 13... c5 {[%clk 0:02:02.1]}
14. Qg4 {[%clk 0:02:36.6]} 14... Re8 {[%clk 0:02:00.1]} 15. e6 {[%clk
0:02:17.2]} 15... fxe6 {[%clk 0:01:53.3]} 16. Qxe6+ {[%clk 0:02:16.7]} 16... Kh8
{[%clk 0:01:54.2]} 17. Nxd5 {[%clk 0:02:12.9]} 17... Bxd5 {[%clk 0:01:52.5]} 18.
Qxd5 {[%clk 0:02:11.4]} 18... Bf6 {[%clk 0:01:53.4]} 19. Bg5 {[%clk 0:01:55.9]}
19... Qc7 {[%clk 0:01:27.8]} 20. Bxf6 {[%clk 0:01:47.7]} 20... Nxf6 {[%clk
0:01:28.7]} 21. Qc4 {[%clk 0:01:45.5]} 21... Qb6 {[%clk 0:01:09.1]} 22. Ng5
{[%clk 0:01:40.9]} 22... h6 {[%clk 0:01:00.6]} 23. Nf7+ {[%clk 0:01:27.5]} 23...
Kh7 {[%clk 0:00:59.2]} 24. b3 {[%clk 0:01:26.1]} 24... Qa5 {[%clk 0:00:49.1]}
25. Ne5 {[%clk 0:01:20.1]} 25... Rad8 {[%clk 0:00:41.6]} 26. c3 {[%clk
0:01:20.3]} 26... Rd2 {[%clk 0:00:38.3]} 27. h3 {[%clk 0:01:17.1]} 27... Rxa2
{[%clk 0:00:37.2]} 28. Qd3+ {[%clk 0:01:14.5]} 28... Kg8 {[%clk 0:00:35.4]} 29.
Rad1 {[%clk 0:01:10.9]} 29... Qb6 {[%clk 0:00:18.5]} 30. b4 {[%clk 0:01:02.9]}
30... cxb4 {[%clk 0:00:15.6]} 31. Qc4+ {[%clk 0:01:02.2]} 31... Qe6 {[%clk
0:00:15.4]} 32. Qxb4 {[%clk 0:00:59]} 32... Qf5 {[%clk 0:00:13.8]} 33. Nf3
{[%clk 0:00:55.5]} 33... Rxe1+ {[%clk 0:00:12.5]} 34. Rxe1 {[%clk 0:00:55.3]}
34... Qc2 {[%clk 0:00:12.6]} 35. Qc5 {[%clk 0:00:48.4]} 35... Ne4 {[%clk
0:00:11.2]} 36. Qd5+ {[%clk 0:00:34.9]} 36... Kh8 {[%clk 0:00:08.3]} 37. Qd8+
{[%clk 0:00:19.7]} 37... Kh7 {[%clk 0:00:08]} 38. Qd4 {[%clk 0:00:18.1]} 38...
Nxf2 {[%clk 0:00:04.1]} 39. Nh4 {[%clk 0:00:16]} 39... Nxh3+ {[%clk 0:00:03.3]}
40. Kh2 {[%clk 0:00:15.9]} 40... Ng5 {[%clk 0:00:03]} 41. Re7 {[%clk 0:00:14.5]}
41... Nf3+ {[%clk 0:00:03.1]} 42. Kg3 {[%clk 0:00:13.5]} 42... Nxd4 {[%clk
0:00:04]} 43. cxd4 {[%clk 0:00:13.3]} 43... Qc3+ {[%clk 0:00:04.9]} 44. Nf3
{[%clk 0:00:12.5]} 44... Qxd4 {[%clk 0:00:05.8]} 45. Nxd4 {[%clk 0:00:11.8]}
45... Ra3+ {[%clk 0:00:06.2]} 46. Kf4 {[%clk 0:00:11.4]} 46... Ra4 {[%clk
0:00:07.1]} 47. Ke5 {[%clk 0:00:11.6]} 47... Ra2 {[%clk 0:00:07.6]} 48. g4
{[%clk 0:00:10.3]} 48... Ra1 {[%clk 0:00:06.4]} 49. Ne6 {[%clk 0:00:10.1]} 49...
Re1+ {[%clk 0:00:06.4]} 50. Kf4 {[%clk 0:00:10.2]} 50... Kh8 {[%clk 0:00:06.6]}
51. Re8+ {[%clk 0:00:09.6]} 51... Kh7 {[%clk 0:00:06.4]} 52. Nf8+ {[%clk
0:00:10.1]} 52... Kg8 {[%clk 0:00:06.8]} 53. Rxe1 {[%clk 0:00:10.8]} 53... Kxf8
{[%clk 0:00:07.7]} 54. Ra1 {[%clk 0:00:11.1]} 54... Kf7 {[%clk 0:00:08.6]} 55.
Rxa6 {[%clk 0:00:11.6]} 55... Kg8 {[%clk 0:00:08.7]} 56. Kf5 {[%clk 0:00:11.8]}
56... Kh7 {[%clk 0:00:09.6]} 57. Ra7 {[%clk 0:00:12.2]} 57... h5 {[%clk
0:00:08.7]} 58. g5 {[%clk 0:00:12.7]} 1-0

[Event "*** Titled Tuesday Blitz"]
[Site "Chess.com"]
[Date "2021.02.09"]
[Round "11"]
[White "VMikhalevski"]
[Black "goldihouse"]
[Result "1-0"]
[WhiteElo "2696"]
[BlackElo "2545"]
[TimeControl "180+1"]
[EndTime "12:08:27 PST"]
[Termination "VMikhalevski won on time"]

1. c4 {[%clk 0:03:00.9]} 1... Nf6 {[%clk 0:02:59.8]} 2. g3 {[%clk 0:03:00.4]}
2... e5 {[%clk 0:03:00]} 3. Bg2 {[%clk 0:03:00.6]} 3... h6 {[%clk 0:02:58.9]} 4.
Nc3 {[%clk 0:02:59.1]} 4... Bb4 {[%clk 0:02:58.8]} 5. Nd5 {[%clk 0:02:59.7]}
5... Nxd5 {[%clk 0:02:58.6]} 6. cxd5 {[%clk 0:02:59]} 6... O-O {[%clk
0:02:59.5]} 7. e3 {[%clk 0:02:58.1]} 7... c6 {[%clk 0:02:59.5]} 8. Ne2 {[%clk
0:02:56.7]} 8... cxd5 {[%clk 0:02:59.3]} 9. Qb3 {[%clk 0:02:55.3]} 9... Nc6
{[%clk 0:02:59.3]} 10. Bxd5 {[%clk 0:02:55]} 10... Be7 {[%clk 0:02:53.4]} 11.
O-O {[%clk 0:02:53.3]} 11... d6 {[%clk 0:02:53.4]} 12. f4 {[%clk 0:02:52.6]}
12... Bf6 {[%clk 0:02:45.4]} 13. d3 {[%clk 0:02:44.6]} 13... Qe7 {[%clk
0:02:41.5]} 14. Bd2 {[%clk 0:02:43.4]} 14... Be6 {[%clk 0:02:38.1]} 15. Rac1
{[%clk 0:02:34]} 15... Rac8 {[%clk 0:02:31]} 16. f5 {[%clk 0:02:29.3]} 16...
Bxd5 {[%clk 0:02:21.8]} 17. Qxd5 {[%clk 0:02:29.3]} 17... Qd7 {[%clk 0:02:22.3]}
18. g4 {[%clk 0:02:19.7]} 18... Ne7 {[%clk 0:02:22]} 19. Qb3 {[%clk 0:02:13]}
19... Bg5 {[%clk 0:02:19.8]} 20. Ng3 {[%clk 0:02:11.9]} 20... d5 {[%clk
0:02:17.2]} 21. Nh5 {[%clk 0:02:09.3]} 21... f6 {[%clk 0:02:14.3]} 22. Kg2
{[%clk 0:02:00.8]} 22... Kh7 {[%clk 0:02:09.2]} 23. Rcd1 {[%clk 0:01:39.4]}
23... d4 {[%clk 0:02:08.7]} 24. e4 {[%clk 0:01:37.7]} 24... Bxd2 {[%clk
0:01:49.8]} 25. Rxd2 {[%clk 0:01:37.5]} 25... Rc6 {[%clk 0:01:50.5]} 26. h4
{[%clk 0:01:36.4]} 26... Rb6 {[%clk 0:01:47.6]} 27. Qd1 {[%clk 0:01:32]} 27...
Rc8 {[%clk 0:01:44.4]} 28. g5 {[%clk 0:01:30.5]} 28... fxg5 {[%clk 0:01:44.5]}
29. hxg5 {[%clk 0:01:30.3]} 29... hxg5 {[%clk 0:01:45.4]} 30. Qg4 {[%clk
0:01:29]} 30... Rh6 {[%clk 0:01:41.3]} 31. Qxg5 {[%clk 0:01:26.5]} 31... Ng8
{[%clk 0:01:41.5]} 32. Rf3 {[%clk 0:01:18.1]} 32... Nf6 {[%clk 0:01:40.6]} 33.
Rh3 {[%clk 0:01:15.8]} 33... Qf7 {[%clk 0:01:32.8]} 34. Ng3 {[%clk 0:01:07.6]}
34... Rh8 {[%clk 0:01:18.5]} 35. Rc2 {[%clk 0:01:04.2]} 35... Rd8 {[%clk
0:01:08.9]} 36. Rh4 {[%clk 0:00:56.6]} 36... Rh8 {[%clk 0:01:07.6]} 37. Kf3
{[%clk 0:00:51]} 37... Rd8 {[%clk 0:01:05.5]} 38. Rch2 {[%clk 0:00:46.2]} 38...
Ng8 {[%clk 0:01:04.7]} 39. Qxd8 {[%clk 0:00:44.2]} 39... Nf6 {[%clk 0:00:47.3]}
40. Rxh6+ {[%clk 0:00:40.7]} 40... gxh6 {[%clk 0:00:48.2]} 41. Qd6 {[%clk
0:00:35.4]} 41... Qg7 {[%clk 0:00:41.8]} 42. Rh4 {[%clk 0:00:27]} 42... Ne8
{[%clk 0:00:36.6]} 43. Qg6+ {[%clk 0:00:24.6]} 43... Qxg6 {[%clk 0:00:37]} 44.
fxg6+ {[%clk 0:00:25]} 44... Kxg6 {[%clk 0:00:37.9]} 45. Rg4+ {[%clk 0:00:25.4]}
45... Kf7 {[%clk 0:00:37.5]} 46. Nh5 {[%clk 0:00:25.4]} 46... Ke6 {[%clk
0:00:37.3]} 47. Rg6+ {[%clk 0:00:25]} 47... Kf7 {[%clk 0:00:37.7]} 48. Rxh6
{[%clk 0:00:25.4]} 48... a5 {[%clk 0:00:38.2]} 49. Rh7+ {[%clk 0:00:25.5]} 49...
Ke6 {[%clk 0:00:38.4]} 50. Rxb7 {[%clk 0:00:25.1]} 50... Kd6 {[%clk 0:00:38.5]}
51. Rb5 {[%clk 0:00:23.8]} 51... a4 {[%clk 0:00:39]} 52. Rd5+ {[%clk 0:00:23.1]}
52... Ke6 {[%clk 0:00:38.7]} 53. Ra5 {[%clk 0:00:23]} 53... Nd6 {[%clk
0:00:38.7]} 54. Rxa4 {[%clk 0:00:22.9]} 54... Nf7 {[%clk 0:00:37.1]} 55. Ra6+
{[%clk 0:00:22.8]} 55... Ke7 {[%clk 0:00:36.7]} 56. b4 {[%clk 0:00:22.2]} 56...
Ng5+ {[%clk 0:00:36.2]} 57. Kg4 {[%clk 0:00:20.5]} 57... Ne6 {[%clk 0:00:36.4]}
58. Rxe6+ {[%clk 0:00:19.7]} 58... Kxe6 {[%clk 0:00:36.4]} 59. a4 {[%clk
0:00:19.6]} 1-0

[Event "*** Titled Tuesday Blitz"]
[Site "Chess.com"]
[Date "2021.02.09"]
[Round "11"]
[White "rugbyclub"]
[Black "JoachimMouhamad"]
[Result "1/2-1/2"]
[WhiteElo "2298"]
[BlackElo "2369"]
[TimeControl "180+1"]
[EndTime "12:08:29 PST"]
[Termination "Game drawn by repetition"]

1. e4 {[%clk 0:03:00.9]} 1... e5 {[%clk 0:02:57.1]} 2. Nf3 {[%clk 0:03:00.2]}
2... Nc6 {[%clk 0:02:56.6]} 3. Bc4 {[%clk 0:03:00]} 3... Nf6 {[%clk 0:02:56.1]}
4. d4 {[%clk 0:02:59.5]} 4... exd4 {[%clk 0:02:53.5]} 5. e5 {[%clk 0:02:59.3]}
5... Ne4 {[%clk 0:02:53.4]} 6. Qe2 {[%clk 0:02:57.3]} 6... Nc5 {[%clk
0:02:50.2]} 7. O-O {[%clk 0:02:53.5]} 7... Ne6 {[%clk 0:02:49.4]} 8. c3 {[%clk
0:02:49.2]} 8... dxc3 {[%clk 0:02:46]} 9. Nxc3 {[%clk 0:02:48.6]} 9... Be7
{[%clk 0:02:46]} 10. Nd5 {[%clk 0:02:47.9]} 10... O-O {[%clk 0:02:43.6]} 11. Qe4
{[%clk 0:02:46]} 11... d6 {[%clk 0:02:08.8]} 12. Rd1 {[%clk 0:02:44.9]} 12...
dxe5 {[%clk 0:02:00.4]} 13. Nf6+ {[%clk 0:02:29.6]} 13... Bxf6 {[%clk
0:02:00.3]} 14. Rxd8 {[%clk 0:02:28.4]} 14... Rxd8 {[%clk 0:02:01.2]} 15. Be3
{[%clk 0:02:15.3]} 15... Ned4 {[%clk 0:01:56.3]} 16. Nxd4 {[%clk 0:01:45.9]}
16... Nxd4 {[%clk 0:01:48.6]} 17. h4 {[%clk 0:01:41.2]} 17... c6 {[%clk
0:01:41.4]} 18. g4 {[%clk 0:01:26.8]} 18... h6 {[%clk 0:01:20.9]} 19. g5 {[%clk
0:01:04.6]} 19... Bf5 {[%clk 0:01:19.3]} 20. Qg2 {[%clk 0:01:04.6]} 20... hxg5
{[%clk 0:01:12.3]} 21. hxg5 {[%clk 0:01:02.1]} 21... Be7 {[%clk 0:00:48.3]} 22.
g6 {[%clk 0:01:01.4]} 22... Be6 {[%clk 0:00:43.7]} 23. Bxe6 {[%clk 0:00:55.8]}
23... Nxe6 {[%clk 0:00:39.9]} 24. gxf7+ {[%clk 0:00:47.1]} 24... Kxf7 {[%clk
0:00:39.7]} 25. Qg4 {[%clk 0:00:44.4]} 25... Nd4 {[%clk 0:00:31.1]} 26. Qh5+
{[%clk 0:00:34.7]} 26... Ke6 {[%clk 0:00:26.4]} 27. Kg2 {[%clk 0:00:30.2]} 27...
Bf6 {[%clk 0:00:26.1]} 28. Re1 {[%clk 0:00:27.7]} 28... c5 {[%clk 0:00:25.7]}
29. f4 {[%clk 0:00:26.7]} 29... Rd5 {[%clk 0:00:22.2]} 30. Qg4+ {[%clk
0:00:23.9]} 30... Nf5 {[%clk 0:00:18.7]} 31. fxe5 {[%clk 0:00:20.6]} 31... Rxe5
{[%clk 0:00:18.7]} 32. Bf2 {[%clk 0:00:21.1]} 32... Rxe1 {[%clk 0:00:17.8]} 33.
Bxe1 {[%clk 0:00:21.7]} 33... Rd8 {[%clk 0:00:16.8]} 34. Bc3 {[%clk 0:00:20.6]}
34... Rd5 {[%clk 0:00:14.7]} 35. Qe4+ {[%clk 0:00:19.8]} 35... Kd6 {[%clk
0:00:09.5]} 36. Bxf6 {[%clk 0:00:18.5]} 36... gxf6 {[%clk 0:00:10.4]} 37. Qe8
{[%clk 0:00:18.1]} 37... b6 {[%clk 0:00:04.8]} 38. Qb8+ {[%clk 0:00:16]} 38...
Ke6 {[%clk 0:00:04.4]} 39. b3 {[%clk 0:00:16.3]} 39... Rd2+ {[%clk 0:00:03.9]}
40. Kf3 {[%clk 0:00:16.3]} 40... Rxa2 {[%clk 0:00:04.8]} 41. Qc8+ {[%clk
0:00:15.4]} 41... Ke5 {[%clk 0:00:05.4]} 42. Qc7+ {[%clk 0:00:15.7]} 42... Nd6
{[%clk 0:00:05.9]} 43. Qe7+ {[%clk 0:00:14.8]} 43... Kd5 {[%clk 0:00:06.3]} 44.
Qxf6 {[%clk 0:00:14]} 44... Ra3 {[%clk 0:00:06.6]} 45. Qg5+ {[%clk 0:00:12]}
45... Kc6 {[%clk 0:00:06.8]} 46. Qd8 {[%clk 0:00:11.7]} 46... Rxb3+ {[%clk
0:00:07.1]} 47. Ke2 {[%clk 0:00:08.8]} 47... Rb4 {[%clk 0:00:07.2]} 48. Qa8+
{[%clk 0:00:07.4]} 48... Kb5 {[%clk 0:00:06]} 49. Qxa7 {[%clk 0:00:08]} 49...
Nc4 {[%clk 0:00:06.6]} 50. Qd7+ {[%clk 0:00:07.4]} 50... Ka5 {[%clk 0:00:06.8]}
51. Kd3 {[%clk 0:00:07.2]} 51... Nb2+ {[%clk 0:00:06.6]} 52. Kc2 {[%clk
0:00:06.8]} 52... Na4 {[%clk 0:00:06.7]} 53. Qa7+ {[%clk 0:00:06.1]} 53... Kb5
{[%clk 0:00:07.3]} 54. Qd7+ {[%clk 0:00:06]} 54... Kc4 {[%clk 0:00:07.9]} 55.
Qg4+ {[%clk 0:00:04.9]} 55... Kb5 {[%clk 0:00:08.1]} 56. Qd7+ {[%clk 0:00:05]}
56... Ka6 {[%clk 0:00:08.6]} 57. Qc8+ {[%clk 0:00:04.2]} 57... Ka7 {[%clk
0:00:09.2]} 58. Qc7+ {[%clk 0:00:04.4]} 58... Ka6 {[%clk 0:00:09.7]} 59. Qc8+
{[%clk 0:00:04.7]} 59... Kb5 {[%clk 0:00:10.1]} 60. Qd7+ {[%clk 0:00:04.7]}
1/2-1/2

[Event "*** Titled Tuesday Blitz"]
[Site "Chess.com"]
[Date "2021.02.09"]
[Round "11"]
[White "Grimlock_Glasgow"]
[Black "mbojan"]
[Result "0-1"]
[WhiteElo "2473"]
[BlackElo "2618"]
[TimeControl "180+1"]
[EndTime "12:08:30 PST"]
[Termination "mbojan won on time"]

1. e4 {[%clk 0:03:00.9]} 1... c6 {[%clk 0:02:59]} 2. d4 {[%clk 0:02:59.6]} 2...
d5 {[%clk 0:02:59.7]} 3. exd5 {[%clk 0:03:00.3]} 3... cxd5 {[%clk 0:03:00.4]} 4.
Nf3 {[%clk 0:03:00.4]} 4... Nc6 {[%clk 0:03:01]} 5. Ne5 {[%clk 0:02:59.6]} 5...
Nxe5 {[%clk 0:03:00]} 6. dxe5 {[%clk 0:02:58.7]} 6... e6 {[%clk 0:03:00.6]} 7.
Bd3 {[%clk 0:02:55.6]} 7... Ne7 {[%clk 0:03:00.4]} 8. O-O {[%clk 0:02:54.4]}
8... Nc6 {[%clk 0:03:00.7]} 9. Re1 {[%clk 0:02:53.7]} 9... Bd7 {[%clk 0:02:54]}
10. Nd2 {[%clk 0:02:49.6]} 10... Qc7 {[%clk 0:02:44.5]} 11. Nf3 {[%clk
0:02:42.3]} 11... Nb4 {[%clk 0:02:43.6]} 12. Be3 {[%clk 0:02:11.8]} 12... Rc8
{[%clk 0:02:40.9]} 13. c3 {[%clk 0:02:03.6]} 13... Nxd3 {[%clk 0:02:37.8]} 14.
Qxd3 {[%clk 0:02:04.5]} 14... a6 {[%clk 0:02:36.8]} 15. h4 {[%clk 0:01:41.6]}
15... Qc4 {[%clk 0:02:33.6]} 16. Qd2 {[%clk 0:01:40.5]} 16... Qg4 {[%clk
0:02:22.4]} 17. Bd4 {[%clk 0:01:35.2]} 17... Be7 {[%clk 0:02:17.6]} 18. Re3
{[%clk 0:01:33.8]} 18... h5 {[%clk 0:01:58.1]} 19. g3 {[%clk 0:01:28.5]} 19...
Qf5 {[%clk 0:01:34.4]} 20. Rae1 {[%clk 0:01:24.4]} 20... Ba4 {[%clk 0:01:32.5]}
21. b3 {[%clk 0:01:22.8]} 21... Bb5 {[%clk 0:01:28.6]} 22. a4 {[%clk 0:01:20.7]}
22... Bc6 {[%clk 0:01:27]} 23. Nh2 {[%clk 0:01:13.7]} 23... Rh6 {[%clk 0:01:19]}
24. Rf3 {[%clk 0:01:11.5]} 24... Qh7 {[%clk 0:01:18.6]} 25. Qf4 {[%clk
0:01:06.3]} 25... Qg8 {[%clk 0:01:12.6]} 26. Nf1 {[%clk 0:01:03.9]} 26... g5
{[%clk 0:00:54.4]} 27. Qd2 {[%clk 0:00:57.7]} 27... Rg6 {[%clk 0:00:54.2]} 28.
hxg5 {[%clk 0:00:55.2]} 28... Bxg5 {[%clk 0:00:54.3]} 29. Be3 {[%clk 0:00:54.9]}
29... Be7 {[%clk 0:00:43.8]} 30. Bd4 {[%clk 0:00:46.9]} 30... h4 {[%clk
0:00:42.5]} 31. Kg2 {[%clk 0:00:36]} 31... Kd7 {[%clk 0:00:39.2]} 32. Ne3 {[%clk
0:00:34.3]} 32... hxg3 {[%clk 0:00:38.4]} 33. Rxg3 {[%clk 0:00:32.1]} 33...
Rxg3+ {[%clk 0:00:38.3]} 34. fxg3 {[%clk 0:00:33]} 34... Qg6 {[%clk 0:00:34.2]}
35. Qf2 {[%clk 0:00:31.3]} 35... Rg8 {[%clk 0:00:30.4]} 36. Rh1 {[%clk
0:00:29.1]} 36... Qe4+ {[%clk 0:00:18]} 37. Qf3 {[%clk 0:00:28.7]} 37... Qg6
{[%clk 0:00:16.5]} 38. Kf2 {[%clk 0:00:25.4]} 38... Rg7 {[%clk 0:00:14.6]} 39.
g4 {[%clk 0:00:20.8]} 39... Qd3 {[%clk 0:00:14.2]} 40. Qe2 {[%clk 0:00:20.3]}
40... Qe4 {[%clk 0:00:13.9]} 41. Qf3 {[%clk 0:00:20.4]} 41... Qd3 {[%clk
0:00:12.4]} 42. Qe2 {[%clk 0:00:20.5]} 42... Qg6 {[%clk 0:00:11.3]} 43. Qf3
{[%clk 0:00:19]} 43... Bg5 {[%clk 0:00:11.6]} 44. Ke2 {[%clk 0:00:15.7]} 44...
Rh7 {[%clk 0:00:11.5]} 45. Rxh7 {[%clk 0:00:14.8]} 45... Qxh7 {[%clk 0:00:12.4]}
46. Kd2 {[%clk 0:00:13.4]} 46... Qh2+ {[%clk 0:00:12.2]} 47. Kc1 {[%clk
0:00:12.5]} 47... Ke8 {[%clk 0:00:12.4]} 48. Kb1 {[%clk 0:00:09.6]} 48... Qd2
{[%clk 0:00:10.3]} 49. Qh3 {[%clk 0:00:04.1]} 49... Qd3+ {[%clk 0:00:09.9]} 50.
Kb2 {[%clk 0:00:03.5]} 50... Qd2+ {[%clk 0:00:09.8]} 51. Nc2 {[%clk 0:00:03.4]}
51... Qf4 {[%clk 0:00:05.3]} 52. Qh8+ {[%clk 0:00:02]} 52... Kd7 {[%clk
0:00:05.8]} 53. Be3 {[%clk 0:00:01.7]} 53... Qxe3 {[%clk 0:00:02.6]} 0-1